Cogmind - Beta 16.1 @@@ ROGUE MODE // 2026.03.17 @ 09:07:07 Player: Ragnakor Result: Destroyed by S-27 Virus with Autogun Performance ------------- Evolutions (4) 2000 Regions Visited (4) 800 Robots Destroyed (6) 30 Value Destroyed (192) 192 Prototype IDs (7) 140 Alien Tech Used (0) 0 Bonus (275) 275 TOTAL SCORE: 3437 Bonus ------- Registered with UFD 300 Friendly Fire -25 Cogmind --------- Core Integrity 0/850 Matter 225/300 Energy 17/100 System Corruption 2% Temperature Cool (0) Movement Core (50) Location -6/Factory Parts ------- > --- POWER (1) -------- (None) > --- PROPULSION (4) --- (None) > --- UTILITY (8) ------ Improved Power Shielding A0-MCA's Component Scanner > --- WEAPON (2) ------- (None) > --- INVENTORY (5) ---- Heavy Ion Cannon DRS Beacon (Ready) Peak State ------------ > --- POWER ------------ Light Nuclear Core > --- PROPULSION ------- Aluminum Leg Improved Carbon-fiber Leg Armored Leg > --- UTILITY ---------- Small Storage Unit Advanced Visual Processing Unit Improved Terrain Scanner Advanced Terrain Scanner A0-MCA's Component Scanner > --- WEAPON ----------- EM Shotgun Coil Gun > --- INVENTORY -------- Ion Engine Assault Rifle Barrage Gun Shock Bomb Launcher Spear DRS Beacon [Rating: 42] Favorites ----------- Power Light Nuclear Core Engine Ion Engine Power Core Light Nuclear Core Propulsion Improved Carbon-fiber Leg Leg Improved Carbon-fiber Leg Flight Unit VTOL Module Utility Small Storage Unit Device Improved Terrain Scanner Storage Small Storage Unit Processor A0-MCA's Component Scanner Weapon Barrage Gun Energy Gun EM Shotgun Energy Cannon Heavy Ion Cannon Ballistic Gun Barrage Gun Launcher Shock Bomb Launcher Build | -11 -10 -10 -8 -6 ------- Run | Yrd Mat Sub Scr Fac Slots Evolved 8 | . . . . 8 Power . | . . . . . Propulsion 2 | . . . . 2 Utility 6 | . . . . 6 Weapon . | . . . . . Parts Attached 28 | 8 . . 6 14 Power 6 | 1 . . 2 3 Engine 3 | 1 . . . 2 Core 3 | . . . 2 1 Reactor . | . . . . . Propulsion 6 | 2 . . 2 2 Treads . | . . . . . Leg 5 | 2 . . 2 1 Wheel . | . . . . . Hover . | . . . . . Flight 1 | . . . . 1 Utility 7 | 2 . . . 5 Device 3 | 1 . . . 2 Storage 1 | 1 . . . . Processor 2 | . . . . 2 Hackware . | . . . . . Protection 1 | . . . . 1 Artifact . | . . . . . Weapon 9 | 3 . . 2 4 Energy Gun 2 | 1 . . 1 . Energy Cannon 1 | . . . . 1 Ballistic Gun 5 | 2 . . 1 2 Ballistic Cannon . | . . . . . Launcher 1 | . . . . 1 Special Weapon . | . . . . . Impact Weapon . | . . . . . Slashing Weapon . | . . . . . Piercing Weapon . | . . . . . Special Melee Weapon . | . . . . . Unidentified Prototypes . | . . . . . Corrupted Parts 1 | . . . . 1 System Corruption 1 | . . . . 1 Parts Lost 18 | . . . . 18 Power 4 | . . . . 4 Propulsion 5 | . . . . 5 Utility 5 | . . . . 5 Weapon 4 | . . . . 4 Highest Loss Streak 18 | . . . . 18 To Critical Strikes 1 | . . . . 1 Average Backups 6 | 2 3 5 7 3 Power 1 | . 1 2 1 . Propulsion 1 | . 1 1 1 . Utility 1 | . . 1 1 . Weapon 2 | . 1 1 2 2 Tool/Special . | . . . . . Unused Backups 6 | 1 . . 4 1 Power 1 | . . . 1 . Propulsion 3 | 1 . . 2 . Utility 1 | . . . 1 . Weapon 1 | . . . . 1 Tool/Special . | . . . . . Average Slot Usage (%) 93 | . 100 100 100 53 Engine 4 | . 14 14 5 . Core 7 | . . . 8 3 Leg 26 | . 28 28 28 14 Device 12 | . 14 14 14 5 Storage 12 | . 14 14 14 5 Processor 1 | . . . . 12 Energy Gun 9 | . . . 11 3 Ballistic Gun 15 | . 28 28 16 5 Peak Build Rating 42 | 9 9 9 23 42 Average Rating 20 | 4 9 9 19 32 On Entrance 10 | . 9 9 9 23 Avg Prop Armor Cover (%) 4 | . . . . 4 Naked Turns . | . . . . . Heaviest Build 20 | 14 14 14 17 20 Greatest Support 44 | 20 20 20 34 44 Greatest Overweight (x) 1 | 1 . . . 1 Average Overweight (x) . | . . . . . Largest Inventory Capacity 8 | 8 8 8 8 8 Average Capacity 7 | 5 8 8 8 7 Most Carried 8 | 4 5 5 8 7 Average Carried 6 | 2 3 5 7 4 Final Capacity 8 | 8 8 8 8 5 Final Carried 8 | 3 5 5 8 2 Class Distribution -------------------- 100% | Mutant Dominant Class ---------------- Mutant | -10/Materials Mutant | -10/Subcaves Mutant | -8/Scraptown Mutant | -6/Factory Resources | -11 -10 -10 -8 -6 ----------- Run | Yrd Mat Sub Scr Fac Matter Collected 580 | 183 17 . 171 209 Remotely . | . . . . . Salvage Created 235 | 35 . . . 200 Parts 8 | 2 . . . 6 Haulers Intercepted . | . . . . . Recyclers Shooed . | . . . . . Parts Field Recycled . | . . . . . Retrieved Matter . | . . . . . Parts Self-Destructed . | . . . . . Prevented . | . . . . . Parts Restored . | . . . . . Kills | -11 -10 -10 -8 -6 ------- Run | Yrd Mat Sub Scr Fac Combat Hostiles Destroyed 4 | . . . . 4 Guns 4 | . . . . 4 Classes Destroyed 4 | 1 . . . 3 Tunneler 2 | 2 . . . . Swarmer 2 | . . . . 2 Grunt 1 | . . . . 1 Sentry 1 | . . . . 1 Best Kill Streak 3 | 1 . . . 3 Combat Bots Only 3 | . . . . 3 Max Kills in Single Turn 1 | 1 . . . 1 Gunslinging . | . . . . . Exploded . | . . . . . Melee . | . . . . . Uniques/NPCs Destroyed . | . . . . . Combat | -11 -10 -10 -8 -6 -------- Run | Yrd Mat Sub Scr Fac Hostile Shots Fired 239 | . . . . 239 Missed 71 | . . . . 71 Hits 168 | . . . . 168 Projectile 168 | . . . . 168 Critical Strikes 2 | . . . . 2 Damage Taken 2557 | . 8 . . 2549 Core 857 | . . . . 857 Absorbed by Shields 22 | . . . . 22 Regen/Repaired (Parts) 293 | . . . 285 8 Core Remaining (%) 100 | 100 . . 100 . Volleys Fired 43 | 9 5 . . 29 Largest 2 | 2 2 . . 2 Hottest 75 | 40 40 . . 75 Shots Fired 70 | 18 10 . . 42 Gun 67 | 18 10 . . 39 Cannon 2 | . . . . 2 Launcher 1 | . . . . 1 Special . | . . . . . Kinetic 63 | 18 10 . . 35 Thermal 2 | . . . . 2 Explosive . | . . . . . Electromagnetic 5 | . . . . 5 Robot Hit Streak 12 | 2 4 . . 12 Robot Miss Streak 4 | 3 4 . . 3 Penetration Max . | . . . . . Secondary Targets 2 | . . . . 2 Max Gunslinging Chain 1 | . . . . 1 Shots Hit Robots 43 | 9 5 . . 29 Core Hits 14 | 3 . . . 11 Critical Kills . | . . . . . Critical Parts Destroyed 3 | . . . . 3 Critical Strikes 3 | . . . . 3 Destroy 3 | . . . . 3 Melee Attacks . | . . . . . Impact . | . . . . . Slashing . | . . . . . Piercing . | . . . . . Sneak Attacks . | . . . . . Combat Hostiles . | . . . . . Follow-up Attacks . | . . . . . Damage Inflicted 762 | 102 75 . . 585 Guns 637 | 98 75 . . 464 Cannons 68 | . . . . 68 Explosions 51 | . . . . 51 Melee . | . . . . . Ramming 6 | 4 . . . 2 Kinetic 590 | 98 75 . . 417 Thermal 68 | . . . . 68 Explosive . | . . . . . Electromagnetic 98 | . . . . 98 Impact . | . . . . . Slashing . | . . . . . Piercing . | . . . . . Highest Corruption 2 | . . . . 2 Average Corruption 1 | . . . . 1 Corruption Purged . | . . . . . Corruption Blocked . | . . . . . Effects 2 | . . . . 2 Message Errors 1 | . . . . 1 Energy Discharges 1 | . . . . 1 Overload Shots . | . . . . . Overflow Damage . | . . . . . Projectiles . | . . . . . Explosions . | . . . . . Melee . | . . . . . Knockbacks . | . . . . . Impact . | . . . . . Kinetic . | . . . . . Secondary . | . . . . . Self-Inflicted Damage 15 | . . . . 15 Shots 1 | . . . . 1 Rammed 1 | . . . . 1 Targets Rammed 3 | 1 1 . . 1 Kicked 2 | 1 1 . . . Crushed . | . . . . . Highest Temperature 9 | . 6 . . 9 Average Temperature 5 | . 6 . . 4 Received Heat Transfer 204 | . 6 . . 198 Siege Activations . | . . . . . Martial Activations . | . . . . . Shielding Activations . | . . . . . Robots Disrupted . | . . . . . Combat Hostiles . | . . . . . Robots Corrupted . | . . . . . Combat Hostiles . | . . . . . Parts Fried . | . . . . . Impact Corruptions . | . . . . . Robots Melted . | . . . . . Combat Hostiles . | . . . . . Parts Melted . | . . . . . Heat Transferred 74 | . . . . 74 Parts Sabotaged . | . . . . . Parts Stolen . | . . . . . Parts Stripped . | . . . . . Power Chain Reactions . | . . . . . Alert | -11 -10 -10 -8 -6 ------- Run | Yrd Mat Sub Scr Fac Maximum Alert Level . | . . . . . Low Security (%) 100 | 100 100 . . 100 Level 1 . | . . . . . Level 2 . | . . . . . Level 3 . | . . . . . Level 4 . | . . . . . Level 5 . | . . . . . High Security . | . . . . . Max Security . | . . . . . Peak Influence 65 | 5 . . . 65 Initial . | . . . . . Average 7 | . . . . 10 Influence Increases 205 | 10 . . . 195 Destroy 0b10 Robot/C 80 | . . . . 80 Destroy 0b10 Robot/NC 10 | 10 . . . . Destroy Leader 10 | . . . . 10 Disable Machine 30 | . . . . 30 Lose Combat Pursuer 75 | . . . . 75 Influence Decreases 183 | 10 . . . 173 Time Decay 68 | 10 . . . 58 Lost Part 115 | . . . . 115 Squads Dispatched 2 | . 1 . . 1 Investigation . | . . . . . Extermination 1 | . . . . 1 Reinforcement 1 | . 1 . . . Assault . | . . . . . Garrison . | . . . . . Intercept . | . . . . . Searches Triggered . | . . . . . Construction Impeded . | . . . . . Haulers Reinforced . | . . . . . Active Scanning Responses . | . . . . . Cargo Convoy Interrupts . | . . . . . Stealth | -11 -10 -10 -8 -6 --------- Run | Yrd Mat Sub Scr Fac Distress Signals 2 | . 1 . . 1 Communications Jammed . | . . . . . Distress Signals . | . . . . . Times Spotted 23 | . 4 . . 19 Peak Tracking Total 8 | . 2 . . 8 Tactical Retreats 4 | . . . . 4 Traps | -11 -10 -10 -8 -6 ------- Run | Yrd Mat Sub Scr Fac Traps Triggered 1 | . . . . 1 Indirectly . | . . . . . Trap Hack Attempts . | . . . . . Triggered . | . . . . . Disarmed . | . . . . . Reprogrammed . | . . . . . Reused . | . . . . . Traps Extracted . | . . . . . Installed . | . . . . . Triggered . | . . . . . Machines | -11 -10 -10 -8 -6 ---------- Run | Yrd Mat Sub Scr Fac Machines Disabled 2 | . . . . 2 Max in Single Turn 1 | . . . . 1 Machines Repaired . | . . . . . Machines Dismantled . | . . . . . Machines Sabotaged . | . . . . . Overloaded Fab Kills . | . . . . . Hacking | -11 -10 -10 -8 -6 --------- Run | Yrd Mat Sub Scr Fac Machines Accessed 7 | . . . 4 3 Terminals 2 | . . . . 2 Fabricators . | . . . . . Repair Stations 1 | . . . . 1 Recycling Units . | . . . . . Scanalyzers . | . . . . . Garrison Access . | . . . . . Total Hacks 30 | . . . 16 14 Successful 25 | . . . 16 9 Failed 5 | . . . . 5 Catastrophic . | . . . . . Database Lockouts . | . . . . . Manual 4 | . . . . 4 Terminals 5 | . . . . 5 Fabricators . | . . . . . Repair Stations 9 | . . . . 9 Recycling Units . | . . . . . Scanalyzers . | . . . . . Garrison Access . | . . . . . Terminal Hacks 17 | . . . 16 1 Record 15 | . . . 15 . Open DSF 1 | . . . . 1 Proto ID Catalog 1 | . . . 1 . Fabricator Hacks . | . . . . . Repair Station Hacks 7 | . . . . 7 Scan Component 4 | . . . . 4 Repair 3 | . . . . 3 Recycling Unit Hacks . | . . . . . Scanalyzer . | . . . . . Garrison Access Hacks . | . . . . . Unauthorized Hacks 1 | . . . . 1 Terminals . | . . . . . Fabricators . | . . . . . Repair Stations 1 | . . . . 1 Mechanics 1 | . . . . 1 Recycling Units . | . . . . . Scanalyzers . | . . . . . Garrison Access . | . . . . . Data Cores Recovered . | . . . . . Used . | . . . . . Hacking Detections 3 | . . . . 3 Full Trace Events . | . . . . . Feedback Events . | . . . . . Feedback Blocked . | . . . . . Robot Schematics Acquired . | . . . . . Robots Built . | . . . . . Authchips . | . . . . . Time . | . . . . . Total Robot Build Rating . | . . . . . Part Schematics Acquired . | . . . . . Parts Built . | . . . . . Authchips . | . . . . . Time . | . . . . . Total Part Build Rating . | . . . . . Part Studies Acquired . | . . . . . Parts Repaired 3 | . . . . 3 Time 108 | . . . . 108 Parts Recycled . | . . . . . Recycled Matter . | . . . . . Retrieved Matter . | . . . . . Retrieved Components . | . . . . . Parts Scanalyzed . | . . . . . Part Schematics Acquired . | . . . . . Parts Damaged . | . . . . . Bothacking | -11 -10 -10 -8 -6 ------------ Run | Yrd Mat Sub Scr Fac Used RIF Installer . | . . . . . Robots Hacked . | . . . . . Non-combat . | . . . . . Combat . | . . . . . Robot Hacks Applied . | . . . . . Relay Couplers Released . | . . . . . Fabnet Peak Effective % . | . . . . . Robots Rewired . | . . . . . Allies Hacked . | . . . . . Hacks Repelled . | . . . . . Allies | -11 -10 -10 -8 -6 -------- Run | Yrd Mat Sub Scr Fac Total Allies . | . . . . . Largest Group . | . . . . . Highest-Rated Group . | . . . . . Highest-Rated Ally . | . . . . . Initial UFD Resources 23 | . . . . 23 Total Orders . | . . . . . Ally Attacks . | . . . . . Total Damage . | . . . . . Kills . | . . . . . Allies Corrupted . | . . . . . Allies Melted . | . . . . . Intel | -11 -10 -10 -8 -6 ------- Run | Yrd Mat Sub Scr Fac Active Infowar (turns) 2703 | 3 105 13 2220 362 Optics 362 | . . . . 362 Terrain 2673 | 3 105 13 2220 332 Robot Analysis Total . | . . . . . Derelict Logs Recovered . | . . . . . Drone Launches . | . . . . . Drone Recoveries . | . . . . . Exploration | -11 -10 -10 -8 -6 ------------- Run | Yrd Mat Sub Scr Fac Turns Passed 2847 | 104 105 13 2220 405 Spaces Moved 2240 | 52 74 9 1829 276 Core 59 | 4 . . . 55 Treads . | . . . . . Legs 2181 | 48 74 9 1829 221 Wheels . | . . . . . Hover . | . . . . . Flight . | . . . . . Fastest Speed 50 | 50 120 120 120 50 Average Speed 118 | 117 120 120 120 108 Slowest Speed 120 | 120 120 120 120 120 Overloaded Moves . | . . . . . Propulsion Burnouts . | . . . . . Robots Hopped . | . . . . . Potential Cave-ins . | . . . . . Cave-ins Triggered . | . . . . . Exploration Rate (%) 22 | 3 12 1 89 9 Regions Visited 4 Branch Regions 2 Pre-discovered Areas . | . . . . . Known Exits Taken . | . . . . . Unknown Exits Taken 4 | 1 1 1 1 . Scrap Searched 3 | . . . 3 . Spaces Dug . | . . . . . Terrain Destroyed 1 | . . . . 1 Melee . | . . . . . Projectile 1 | . . . . 1 AOE . | . . . . . Terrain Rammed . | . . . . . Walls Destroyed . | . . . . . Machines Disabled . | . . . . . Actions | -11 -10 -10 -8 -6 --------- Run | Yrd Mat Sub Scr Fac Total 2357 | 75 81 11 1853 337 Wait 13 | . . 3 1 9 Move 2237 | 52 73 8 1828 276 Hop . | . . . . . Pick Up 14 | 5 2 . 7 . Fast Attach 18 | 6 . . . 12 Attach 8 | 1 . . . 7 Detach 2 | . . . . 2 Swap 10 | 1 . . 8 1 Drop 8 | 1 . . 7 . Fire 43 | 9 5 . . 29 Melee . | . . . . . Ram 1 | . . . . 1 Kick 1 | . 1 . . . Crush . | . . . . . Escape Stasis . | . . . . . Rewire 2 | . . . 2 . Trap . | . . . . . Miscellaneous . | . . . . . Route ------- -11/Scrapyard -10/Materials -10/Subcaves -8/Scraptown (discovered 2 exits: *Fac x2) -6/Factory (discovered 1 exit: [*Low]) History --------- Turn | Location | Event 18 | -11/Scrapyard | Discovered new exit (range 15) 105 | -11/Scrapyard | Entered Materials 106 | -10/Materials | Met a group of wandering Federalists 195 | -10/Materials | Discovered new exit (range 10) 210 | -10/Materials | Entered Subcaves 211 | -10/Subcaves | Continued accompanying wandering Federalists (3) 211 | -10/Subcaves | Approached by a straggling Scientist 223 | -10/Subcaves | Entered Scraptown 302 | -8/Scraptown | Build established: Mutant 580 | -8/Scraptown | Discovered new exit (range 5) 705 | -8/Scraptown | Heard Great Nut preacher, LISTEN AND RECITE! 710 | -8/Scraptown | Visited SPCMW 749 | -8/Scraptown | Visited Cave Peace 866 | -8/Scraptown | Visited CR-KLE's Repair Center 896 | -8/Scraptown | Visited Comm Corps 1255 | -8/Scraptown | Visited UFD Registry 1256 | -8/Scraptown | Registered with UFD as "Microcell" 1279 | -8/Scraptown | Visited LU-1G1's Boring Crew 1374 | -8/Scraptown | Visited Science Guys 1422 | -8/Scraptown | Visited Junk Cannon Lab 1451 | -8/Scraptown | Visited Derelict Rescue Squad 1482 | -8/Scraptown | Found DRS Beacon 1683 | -8/Scraptown | Visited Research Penetration Think Tank 1709 | -8/Scraptown | Visited A0-MCA Data Center 1717 | -8/Scraptown | Given an A- rating by A0-MCA 1724 | -8/Scraptown | Found A0-MCA's Component Scanner 1760 | -8/Scraptown | Visited Curators Association 1789 | -8/Scraptown | Visited Scrapoid Research Area 1849 | -8/Scraptown | Visited Abandonware Association 2129 | -8/Scraptown | Discovered new exit (range 3) 2284 | -8/Scraptown | CR-KLE repaired 5 parts 2443 | -8/Scraptown | Entered Factory 2443 | -6/Factory | Evolved 8 slots: Propulsion x2, Utility x6 2512 | -6/Factory | Identified exit to DSF 2667 | -6/Factory | Repaired Spear 2667 | -6/Factory | Repaired Aluminum Leg 2705 | -6/Factory | Repaired Shock Bomb Launcher 2728 | -6/Factory | Discovered new exit (range 19) 2786 | -6/Factory | Core integrity fell below 50% 2831 | -6/Factory | Core integrity fell below 20% 2848 | -6/Factory | Destroyed by S-27 Virus with Autogun Last Messages --------------- 02786_ Sml. Storage Unit destroyed. 02789_ Slug penetrates S-27 Virus. 02789_ S-27 Virus destroyed. 02789_ Terminal disabled. 02789_ Penetrated by Slug. 02790_ ALERT: Potential suspicious activity detected, Programmers report to Factory Zone 2H. 02792_ 47BSVONVF2REMA:KJTKSKT6DF9O# DNUXHNS= 02793_ Acquired Flexi-carbon Leg. 02801_ Acquired Imp. Shield Generator. 02805_ Slug penetrates Wall. 02805_ Adv. Visual Processing Unit destroyed. 02806_ Imp. Shield Generator destroyed. 02821_ Slug penetrates Wall. 02827_ Flexi-carbon Leg destroyed. 02841_ K-01 Serf cleans the Pressure Siphon. 02842_ Acquired Hvy. Ion Cannon. 02846_ System corrupted: Energy discharge (-20). 02848_ Acquired Imp. Power Shielding. Map ----- +----------------------------------------------------+ | ?????????????????????????????????????????????????? | | ?????????????????????????????????????????????????? | | ?????????????????????????????????????????????????? | | ?????????????????????????????????????????????????? | | ?????????????????????????????????????????????????? | | ?????????????????????????????????????????????????? | | ?????????????????????????????????????????????????? | | ?????????????????????????????????????????????????? | | ?????????????????????????????????????????????????? | | ?????????????????????????????????????????????????? | | ?????????????????????????????????????????????????? | | ?????????????????????????????????????????????????? | | ?????????????????????????????????????????????????? | | ?????????????????????????????????????????????????? | | ??????????????????#??????????????????????????????? | | ??????????????????# ?????????????##??????????????? | | ??????????????????# ???????????? ???????????????? | | ??????????????????# ??????????? #???????????????? | | ??????????????????# ?????????? ????????????????? | | ??????????????????# ########## #?????????????????? | | ?????????????????## #?????????????????? | | ?????????????????# ####??????????????? | | ?????????????????# #??????????????? | | ?????????????????# #??????????????? | | ?????????????????# ]] !! #??????????????? | | ?????????????????# ] ]@ """" ????????????????? | | ?????????????????+ k"""" ????????????????? | | ?????????????????# """" ????????????????? | | ??????????######## s ????????????? | | ##????????# s"""" """" ???????????? | | #????????# s """" """" ????????????? | | #????????# """" """" ????????????? | | #????????# ????????????? | | #????????# ????????????? | | #????????# p ???????????? | | #?????????# #???????????? | | #?????????# ######## ???????????? | | #?????????# # + ???????????? | | #?????????# # # ###### #?????????????? | | ##????????# # ??# #????????????????????? | | #######+## # ????# #????????????????????? | | #??????# #????????????????????? | | #??????# #????????????????????? | | #??????# #????????????????????? | | #######+######??????# #????????????????????? | | ## = #??????# #????????????????????? | | ?# #??????# #????????????????????? | | ## #??????# #????????????????????? | | ?# #??????# #????????????????????? | | ?# #??????# #????????????????????? | +----------------------------------------------------+ Best States ------------- Heat Dissipation 37 Energy Generation 14 Energy Capacity 250 Matter Stores 300 Matter Capacity 300 Sight Range 20 Terrain Scan Range 20 Terrain Scan Density 10 Evasion (%) 55 Item Schematics ----------------- None Robot Schematics ------------------ None Fabricated ------------ Nothing Repaired ---------- Shock Bomb Launcher | 89% | -6/Factory Studied --------- None Alien Tech Used ----------------- None Achievements -------------- None Challenges ------------ None Game ------ Seed CoolingExoskeletonComputer Manual? 0 Play Time 00:23:56 Cumulative 33.2 hours Start 2026.03.17 @ 08:44:11 End 2026.03.17 @ 09:07:07 Sessions 1 Manual Loads 0 Difficulty Rogue Special Mode None Game No. 63 Rogue 63 Adventurer 0 Explorer 0 Win Type - Total 0 Types 0/0/0/0/0/0/0/0/0/0 Lore% 30 Gallery% 25 Achievement% 23 Wizard Run 0 Options --------- Layout 1 ASCII 0 Keyboard 0 Movement Numpad Keybinds 0 Fullscreen 1 Font 24/Smallcaps Map View 50x35 Zoom Use 0% Tactical HUD 1 Map Filters NONE Filters NONE Steam 1 RUN: e49bbc29-e581-4b1d-aec2-69cab1dd3ffa